[Event "Titled Tuesday Blitz September 27 Early 2022"]
[White "Narayanan.S.L"]
[Black "Jakubowski, Krzysztof"]
[WhiteFideId "5058422"]
[BlackFideId "1112848"]
[WhiteElo "2504"]
[BlackElo "2306"]
[Result "1-0"]
[Round "02"]
[TimeControl "180+1"]
[Date "2022.09.27"]
[WhiteClock "0:01:03"]
[BlackClock "0:00:02"]

1. e4 {[%clk 0:03:00]}  c5 {[%clk 0:02:57]} 2. Nf3 {[%clk 0:03:00]}  e6 {[%clk 0:02:57]} 3. d4 {[%clk 0:03:00]}  cxd4 {[%clk 0:02:57]} 4. Nxd4 {[%clk 0:03:01]}  Nc6 {[%clk 0:02:57]} 5. Nc3 {[%clk 0:03:01]}  Qc7 {[%clk 0:02:57]} 6. Be3 {[%clk 0:03:01]}  a6 {[%clk 0:02:57]} 7. Qd2 {[%clk 0:03:00]}  Nf6 {[%clk 0:02:55]} 8. O-O-O {[%clk 0:03:00]}  Be7 {[%clk 0:02:45]} 9. Kb1 {[%clk 0:02:55]}  O-O {[%clk 0:02:42]} 10. g4 {[%clk 0:02:54]}  Nxg4 {[%clk 0:02:38]} 11. Rg1 {[%clk 0:02:54]}  Nxe3 {[%clk 0:02:36]} 12. Qxe3 {[%clk 0:02:54]}  Nxd4 {[%clk 0:02:22]} 13. Qxd4 {[%clk 0:02:53]}  f6 {[%clk 0:02:17]} 14. Qe3 {[%clk 0:02:45]}  Bc5 {[%clk 0:02:05]} 15. Qf3 {[%clk 0:02:41]}  Qe5 {[%clk 0:01:53]} 16. Bd3 {[%clk 0:02:38]}  Rf7 {[%clk 0:01:52]} 17. Ne2 {[%clk 0:02:38]}  a5 {[%clk 0:01:37]} 18. Qg2 {[%clk 0:02:38]}  a4 {[%clk 0:01:36]} 19. f4 {[%clk 0:02:37]}  Qc7 {[%clk 0:01:36]} 20. Rgf1 {[%clk 0:02:33]}  a3 {[%clk 0:01:36]} 21. b3 {[%clk 0:02:33]}  b6 {[%clk 0:01:30]} 22. f5 {[%clk 0:02:29]}  Qe5 {[%clk 0:01:22]} 23. c3 {[%clk 0:02:29]}  Bb7 {[%clk 0:01:16]} 24. Qg4 {[%clk 0:02:22]}  Re7 {[%clk 0:01:05]} 25. Bc2 {[%clk 0:02:21]}  Ba6 {[%clk 0:01:01]} 26. Rd3 {[%clk 0:01:32]}  exf5 {[%clk 0:00:51]} 27. Qh3 {[%clk 0:01:33]}  Bxd3 {[%clk 0:00:44]} 28. Bxd3 {[%clk 0:01:32]}  fxe4 {[%clk 0:00:43]} 29. Bc2 {[%clk 0:01:33]}  d5 {[%clk 0:00:41]} 30. Nf4 {[%clk 0:01:31]}  d4 {[%clk 0:00:35]} 31. b4 {[%clk 0:01:29]}  d3 {[%clk 0:00:33]} 32. Bb3+ {[%clk 0:01:30]}  Rf7 {[%clk 0:00:23]} 33. Bxf7+ {[%clk 0:01:29]}  Kxf7 {[%clk 0:00:21]} 34. bxc5 {[%clk 0:01:28]}  Re8 {[%clk 0:00:14]} 35. Qd7+ {[%clk 0:01:21]}  Re7 {[%clk 0:00:13]} 36. Qd5+ {[%clk 0:01:20]}  Qxd5 {[%clk 0:00:13]} 37. Nxd5 {[%clk 0:01:21]}  Re5 {[%clk 0:00:13]} 38. c4 {[%clk 0:01:17]}  bxc5 {[%clk 0:00:11]} 39. Re1 {[%clk 0:01:15]}  d2 {[%clk 0:00:10]} 40. Rh1 {[%clk 0:01:13]}  e3 {[%clk 0:00:10]} 41. Kc2 {[%clk 0:01:14]}  Re4 {[%clk 0:00:09]} 42. Kd3 {[%clk 0:01:12]}  Rd4+ {[%clk 0:00:08]} 43. Ke2 {[%clk 0:01:13]}  Rxc4 {[%clk 0:00:06]} 44. Nxe3 {[%clk 0:01:13]}  Rb4 {[%clk 0:00:06]} 45. Kxd2 {[%clk 0:01:10]}  Rh4 {[%clk 0:00:05]} 46. h3 {[%clk 0:01:05]}  g5 {[%clk 0:00:02]} 47. Rc1 {[%clk 0:01:03]} 1-0


[Site "https://www.chess.com"]

[Event "Titled Tuesday Blitz September 27 Early 2022"]
[White "Obregon Garcia, Roxangel"]
[Black "Manukian, Artak"]
[WhiteFideId "3520420"]
[BlackFideId "13301373"]
[WhiteElo "2036"]
[BlackElo "2523"]
[Result "1-0"]
[Round "02"]
[TimeControl "180+1"]
[Date "2022.09.27"]
[WhiteClock "0:00:11"]
[BlackClock "0:00:18"]

1. e4 {[%clk 0:03:00]}  c5 {[%clk 0:02:57]} 2. Nf3 {[%clk 0:02:57]}  a6 {[%clk 0:02:55]} 3. d4 {[%clk 0:02:57]}  cxd4 {[%clk 0:02:54]} 4. Nxd4 {[%clk 0:02:57]}  Nf6 {[%clk 0:02:52]} 5. Bd3 {[%clk 0:02:56]}  e5 {[%clk 0:02:45]} 6. Nb3 {[%clk 0:02:55]}  d5 {[%clk 0:02:46]} 7. exd5 {[%clk 0:02:50]}  e4 {[%clk 0:02:44]} 8. Be2 {[%clk 0:02:39]}  Qxd5 {[%clk 0:02:43]} 9. Qxd5 {[%clk 0:02:36]}  Nxd5 {[%clk 0:02:43]} 10. O-O {[%clk 0:02:35]}  Nc6 {[%clk 0:02:40]} 11. c3 {[%clk 0:02:32]}  f5 {[%clk 0:02:35]} 12. N1d2 {[%clk 0:02:28]}  Be6 {[%clk 0:02:25]} 13. Nc4 {[%clk 0:02:25]}  b5 {[%clk 0:02:22]} 14. Ne3 {[%clk 0:02:25]}  Be7 {[%clk 0:02:05]} 15. Nxd5 {[%clk 0:02:21]}  Bxd5 {[%clk 0:02:05]} 16. Be3 {[%clk 0:02:21]}  Ne5 {[%clk 0:01:59]} 17. Bd4 {[%clk 0:02:13]}  Bf6 {[%clk 0:01:57]} 18. Rfd1 {[%clk 0:02:11]}  O-O-O {[%clk 0:01:55]} 19. Rac1 {[%clk 0:02:09]}  Bc4 {[%clk 0:01:48]} 20. Bxc4 {[%clk 0:02:00]}  Nxc4 {[%clk 0:01:47]} 21. Rc2 {[%clk 0:01:37]}  Bxd4 {[%clk 0:01:34]} 22. Nxd4 {[%clk 0:01:36]}  g6 {[%clk 0:01:34]} 23. b3 {[%clk 0:01:31]}  Ne5 {[%clk 0:01:32]} 24. Re1 {[%clk 0:01:09]}  Kb7 {[%clk 0:01:25]} 25. f3 {[%clk 0:01:08]}  Nd3 {[%clk 0:01:21]} 26. Re3 {[%clk 0:01:08]}  Rhe8 {[%clk 0:01:06]} 27. g4 {[%clk 0:01:03]}  b4 {[%clk 0:01:02]} 28. gxf5 {[%clk 0:00:58]}  bxc3 {[%clk 0:01:02]} 29. Ne6 {[%clk 0:00:58]}  Rd7 {[%clk 0:00:46]} 30. fxe4 {[%clk 0:00:56]}  gxf5 {[%clk 0:00:43]} 31. Rxd3 {[%clk 0:00:51]}  Rxd3 {[%clk 0:00:40]} 32. Nc5+ {[%clk 0:00:51]}  Kb6 {[%clk 0:00:40]} 33. Nxd3 {[%clk 0:00:52]}  fxe4 {[%clk 0:00:41]} 34. Ne1 {[%clk 0:00:52]}  Rc8 {[%clk 0:00:40]} 35. Kf2 {[%clk 0:00:51]}  Kb5 {[%clk 0:00:41]} 36. Ke3 {[%clk 0:00:51]}  Kb4 {[%clk 0:00:41]} 37. Ng2 {[%clk 0:00:50]}  Rd8 {[%clk 0:00:34]} 38. Nf4 {[%clk 0:00:49]}  a5 {[%clk 0:00:32]} 39. Kxe4 {[%clk 0:00:47]}  Rd2 {[%clk 0:00:32]} 40. Nd3+ {[%clk 0:00:47]}  Kb5 {[%clk 0:00:31]} 41. Rxc3 {[%clk 0:00:25]}  Rxa2 {[%clk 0:00:29]} 42. h3 {[%clk 0:00:24]}  Rh2 {[%clk 0:00:26]} 43. Nf4 {[%clk 0:00:22]}  Kb4 {[%clk 0:00:26]} 44. Re3 {[%clk 0:00:20]}  Rc2 {[%clk 0:00:22]} 45. Nd5+ {[%clk 0:00:20]}  Kc5 {[%clk 0:00:21]} 46. Nf6 {[%clk 0:00:19]}  h6 {[%clk 0:00:20]} 47. Ng8 {[%clk 0:00:19]}  h5 {[%clk 0:00:20]} 48. Nf6 {[%clk 0:00:19]}  h4 {[%clk 0:00:20]} 49. Nd7+ {[%clk 0:00:20]}  Kb4 {[%clk 0:00:20]} 50. Ne5 {[%clk 0:00:20]}  Rc3 {[%clk 0:00:19]} 51. Rxc3 {[%clk 0:00:16]}  Kxc3 {[%clk 0:00:20]} 52. Kf4 {[%clk 0:00:16]}  Kxb3 {[%clk 0:00:20]} 53. Kg4 {[%clk 0:00:17]}  a4 {[%clk 0:00:20]} 54. Nd3 {[%clk 0:00:17]}  a3 {[%clk 0:00:20]} 55. Kxh4 {[%clk 0:00:16]}  Kc3 {[%clk 0:00:18]} 56. Nc1 {[%clk 0:00:15]}  Kb2 {[%clk 0:00:18]} 57. Nd3+ {[%clk 0:00:14]}  Kc3 {[%clk 0:00:18]} 58. Nc1 {[%clk 0:00:11]} 1-0


[Site "https://www.chess.com"]

[Event "Titled Tuesday Blitz September 27 Early 2022"]
[White "Odegov, Artem"]
[Black "Pakleza, Zbigniew"]
[WhiteFideId "34183644"]
[BlackFideId "1119290"]
[WhiteElo "2286"]
[BlackElo "2411"]
[Result "0-1"]
[Round "02"]
[TimeControl "180+1"]
[Date "2022.09.27"]
[WhiteClock "0:00:09"]
[BlackClock "0:00:12"]

1. d4 {[%clk 0:03:00]}  d6 {[%clk 0:03:00]} 2. Nf3 {[%clk 0:02:57]}  Bg4 {[%clk 0:03:00]} 3. c4 {[%clk 0:02:57]}  c6 {[%clk 0:02:58]} 4. Nc3 {[%clk 0:02:56]}  Nd7 {[%clk 0:02:58]} 5. g3 {[%clk 0:02:48]}  Bxf3 {[%clk 0:02:58]} 6. exf3 {[%clk 0:02:49]}  e6 {[%clk 0:02:58]} 7. Bg2 {[%clk 0:02:50]}  d5 {[%clk 0:02:58]} 8. O-O {[%clk 0:02:50]}  Ne7 {[%clk 0:02:54]} 9. f4 {[%clk 0:02:50]}  g6 {[%clk 0:02:53]} 10. b4 {[%clk 0:02:47]}  Bg7 {[%clk 0:02:44]} 11. b5 {[%clk 0:02:47]}  O-O {[%clk 0:02:41]} 12. Ba3 {[%clk 0:02:47]}  Re8 {[%clk 0:02:40]} 13. Rb1 {[%clk 0:02:37]}  Nf5 {[%clk 0:02:29]} 14. Ne2 {[%clk 0:02:15]}  Nb6 {[%clk 0:02:28]} 15. bxc6 {[%clk 0:02:03]}  bxc6 {[%clk 0:02:25]} 16. c5 {[%clk 0:02:03]}  Nc4 {[%clk 0:02:17]} 17. Bb4 {[%clk 0:02:02]}  Rb8 {[%clk 0:01:52]} 18. Bc3 {[%clk 0:01:57]}  Rxb1 {[%clk 0:01:48]} 19. Qxb1 {[%clk 0:01:58]}  Qc7 {[%clk 0:01:48]} 20. Qd3 {[%clk 0:01:55]}  Rb8 {[%clk 0:01:47]} 21. Rb1 {[%clk 0:01:55]}  Rb7 {[%clk 0:01:37]} 22. Bf1 {[%clk 0:01:42]}  Qb8 {[%clk 0:01:35]} 23. Rxb7 {[%clk 0:01:42]}  Qxb7 {[%clk 0:01:35]} 24. Qc2 {[%clk 0:01:42]}  Na3 {[%clk 0:01:21]} 25. Qa4 {[%clk 0:01:30]}  Nb5 {[%clk 0:01:07]} 26. Ba1 {[%clk 0:01:30]}  h5 {[%clk 0:01:06]} 27. Qb4 {[%clk 0:01:26]}  Nbd6 {[%clk 0:00:53]} 28. Qxb7 {[%clk 0:01:06]}  Nxb7 {[%clk 0:00:54]} 29. Bc3 {[%clk 0:01:05]}  Kf8 {[%clk 0:00:47]} 30. Bh3 {[%clk 0:01:04]}  Ke8 {[%clk 0:00:43]} 31. Kf1 {[%clk 0:00:59]}  Kd7 {[%clk 0:00:43]} 32. Ke1 {[%clk 0:00:59]}  Bf8 {[%clk 0:00:36]} 33. Kd2 {[%clk 0:00:54]}  Be7 {[%clk 0:00:36]} 34. Ng1 {[%clk 0:00:44]}  Bd8 {[%clk 0:00:29]} 35. Nf3 {[%clk 0:00:43]}  f6 {[%clk 0:00:17]} 36. Kd3 {[%clk 0:00:33]}  Ke7 {[%clk 0:00:13]} 37. Bf1 {[%clk 0:00:28]}  Kf7 {[%clk 0:00:13]} 38. h4 {[%clk 0:00:28]}  Bc7 {[%clk 0:00:12]} 39. Kc2 {[%clk 0:00:16]}  Ke7 {[%clk 0:00:11]} 40. Ba6 {[%clk 0:00:15]}  Nd8 {[%clk 0:00:07]} 41. a4 {[%clk 0:00:16]}  Kd7 {[%clk 0:00:06]} 42. Bd3 {[%clk 0:00:16]}  Nb7 {[%clk 0:00:04]} 43. Ba6 {[%clk 0:00:16]}  Nd8 {[%clk 0:00:04]} 44. a5 {[%clk 0:00:16]}  Nh6 {[%clk 0:00:04]} 45. Bd3 {[%clk 0:00:15]}  Nf5 {[%clk 0:00:05]} 46. a6 {[%clk 0:00:16]}  Ke7 {[%clk 0:00:04]} 47. Kb3 {[%clk 0:00:16]}  Kd7 {[%clk 0:00:05]} 48. Ka4 {[%clk 0:00:17]}  Nf7 {[%clk 0:00:05]} 49. Kb3 {[%clk 0:00:14]}  N7h6 {[%clk 0:00:05]} 50. Kc2 {[%clk 0:00:09]}  Ng4 {[%clk 0:00:06]} 51. Be1 {[%clk 0:00:09]}  Ke7 {[%clk 0:00:06]} 52. Kd2 {[%clk 0:00:08]}  Ba5+ {[%clk 0:00:06]} 53. Ke2 {[%clk 0:00:09]}  Bxe1 {[%clk 0:00:07]} 54. Kxe1 {[%clk 0:00:10]}  Kd7 {[%clk 0:00:07]} 55. Ke2 {[%clk 0:00:10]}  Ngh6 {[%clk 0:00:07]} 56. Bxf5 {[%clk 0:00:07]}  Nxf5 {[%clk 0:00:06]} 57. Kd3 {[%clk 0:00:08]}  Ke7 {[%clk 0:00:06]} 58. Ne1 {[%clk 0:00:06]}  Kd7 {[%clk 0:00:04]} 59. Nc2 {[%clk 0:00:06]}  Kc7 {[%clk 0:00:05]} 60. Nb4 {[%clk 0:00:04]}  Ng7 {[%clk 0:00:04]} 61. Na2 {[%clk 0:00:03]}  Ne8 {[%clk 0:00:04]} 62. Nb4 {[%clk 0:00:02]}  Kd7 {[%clk 0:00:05]} 63. f3 {[%clk 0:00:02]}  Nc7 {[%clk 0:00:06]} 64. Ke3 {[%clk 0:00:03]}  Nb5 {[%clk 0:00:06]} 65. Kd3 {[%clk 0:00:04]}  Nc7 {[%clk 0:00:06]} 66. Ke3 {[%clk 0:00:04]}  Nb5 {[%clk 0:00:06]} 67. g4 {[%clk 0:00:04]}  Na3 {[%clk 0:00:07]} 68. gxh5 {[%clk 0:00:04]}  gxh5 {[%clk 0:00:08]} 69. f5 {[%clk 0:00:05]}  exf5 {[%clk 0:00:05]} 70. Kf4 {[%clk 0:00:05]}  Nb5 {[%clk 0:00:06]} 71. Kxf5 {[%clk 0:00:05]}  Nxd4+ {[%clk 0:00:06]} 72. Kxf6 {[%clk 0:00:06]}  Nxf3 {[%clk 0:00:06]} 73. Kf5 {[%clk 0:00:06]}  Nxh4+ {[%clk 0:00:07]} 74. Kg5 {[%clk 0:00:07]}  Nf3+ {[%clk 0:00:04]} 75. Kxh5 {[%clk 0:00:08]}  Nd2 {[%clk 0:00:03]} 76. Kg4 {[%clk 0:00:07]}  Ne4 {[%clk 0:00:03]} 77. Kf5 {[%clk 0:00:07]}  Nxc5 {[%clk 0:00:03]} 78. Ke5 {[%clk 0:00:08]}  Kc7 {[%clk 0:00:03]} 79. Kd4 {[%clk 0:00:09]}  Nd7 {[%clk 0:00:03]} 80. Na2 {[%clk 0:00:06]}  Kd6 {[%clk 0:00:03]} 81. Nc3 {[%clk 0:00:06]}  c5+ {[%clk 0:00:04]} 82. Kd3 {[%clk 0:00:07]}  Kc6 {[%clk 0:00:04]} 83. Kc2 {[%clk 0:00:06]}  Nb8 {[%clk 0:00:04]} 84. Kd3 {[%clk 0:00:04]}  Nxa6 {[%clk 0:00:04]} 85. Ne2 {[%clk 0:00:05]}  Nb4+ {[%clk 0:00:05]} 86. Kc3 {[%clk 0:00:05]}  Kb5 {[%clk 0:00:06]} 87. Nf4 {[%clk 0:00:05]}  d4+ {[%clk 0:00:07]} 88. Kb3 {[%clk 0:00:05]}  a5 {[%clk 0:00:08]} 89. Ne6 {[%clk 0:00:05]}  a4+ {[%clk 0:00:09]} 90. Ka3 {[%clk 0:00:05]}  Nc2+ {[%clk 0:00:09]} 91. Kb2 {[%clk 0:00:05]}  Ne3 {[%clk 0:00:10]} 92. Nc7+ {[%clk 0:00:05]}  Kc4 {[%clk 0:00:09]} 93. Ne8 {[%clk 0:00:06]}  Kd3 {[%clk 0:00:09]} 94. Nd6 {[%clk 0:00:07]}  c4 {[%clk 0:00:10]} 95. Nb5 {[%clk 0:00:07]}  c3+ {[%clk 0:00:10]} 96. Ka1 {[%clk 0:00:08]}  c2 {[%clk 0:00:10]} 97. Kb2 {[%clk 0:00:08]}  Kd2 {[%clk 0:00:10]} 98. Nc3 {[%clk 0:00:08]}  c1=Q+ {[%clk 0:00:10]} 99. Ka2 {[%clk 0:00:08]}  Qc2+ {[%clk 0:00:10]} 100. Ka1 {[%clk 0:00:07]}  Qxc3+ {[%clk 0:00:11]} 101. Ka2 {[%clk 0:00:08]}  Qb3+ {[%clk 0:00:11]} 102. Ka1 {[%clk 0:00:09]}  Nc2# {[%clk 0:00:12]} 0-1


[Site "https://www.chess.com"]

[Event "Titled Tuesday Blitz September 27 Early 2022"]
[White "Ozen, Bahadir"]
[Black "Goncalves, Davi Sulzbacher"]
[WhiteFideId "6337058"]
[BlackFideId "2154510"]
[WhiteElo "2503"]
[BlackElo "2107"]
[Result "1-0"]
[Round "02"]
[TimeControl "180+1"]
[Date "2022.09.27"]
[WhiteClock "0:00:53"]
[BlackClock "0:00:12"]

1. g3 {[%clk 0:03:00]}  c6 {[%clk 0:02:59]} 2. Bg2 {[%clk 0:03:00]}  d5 {[%clk 0:03:00]} 3. Nf3 {[%clk 0:03:01]}  Nf6 {[%clk 0:03:01]} 4. O-O {[%clk 0:03:01]}  Bf5 {[%clk 0:03:01]} 5. d3 {[%clk 0:02:59]}  e6 {[%clk 0:03:02]} 6. Nh4 {[%clk 0:02:59]}  Bg4 {[%clk 0:03:02]} 7. h3 {[%clk 0:02:58]}  Bh5 {[%clk 0:03:02]} 8. Qe1 {[%clk 0:02:59]}  Be7 {[%clk 0:02:57]} 9. f4 {[%clk 0:02:58]}  Nbd7 {[%clk 0:02:51]} 10. e4 {[%clk 0:02:51]}  dxe4 {[%clk 0:02:25]} 11. dxe4 {[%clk 0:02:51]}  O-O {[%clk 0:02:08]} 12. Be3 {[%clk 0:02:36]}  Ne8 {[%clk 0:01:57]} 13. Nc3 {[%clk 0:02:17]}  Bxh4 {[%clk 0:01:46]} 14. gxh4 {[%clk 0:02:18]}  Qe7 {[%clk 0:01:35]} 15. Qg3 {[%clk 0:02:16]}  Nd6 {[%clk 0:01:29]} 16. b3 {[%clk 0:02:13]}  h6 {[%clk 0:00:53]} 17. Rae1 {[%clk 0:02:11]}  Rad8 {[%clk 0:00:53]} 18. Kh1 {[%clk 0:02:09]}  f5 {[%clk 0:00:52]} 19. e5 {[%clk 0:02:04]}  Ne8 {[%clk 0:00:52]} 20. Na4 {[%clk 0:01:53]}  b5 {[%clk 0:00:52]} 21. Nb2 {[%clk 0:01:52]}  Nb6 {[%clk 0:00:45]} 22. Nd3 {[%clk 0:01:50]}  Nd5 {[%clk 0:00:45]} 23. Bc5 {[%clk 0:01:50]}  Qf7 {[%clk 0:00:41]} 24. Bxf8 {[%clk 0:01:48]}  Qxf8 {[%clk 0:00:42]} 25. c4 {[%clk 0:01:44]}  Nc3 {[%clk 0:00:30]} 26. Nc1 {[%clk 0:01:27]}  b4 {[%clk 0:00:27]} 27. a3 {[%clk 0:01:28]}  c5 {[%clk 0:00:27]} 28. axb4 {[%clk 0:01:28]}  cxb4 {[%clk 0:00:27]} 29. Bf3 {[%clk 0:01:25]}  Bxf3+ {[%clk 0:00:26]} 30. Qxf3 {[%clk 0:01:26]}  a5 {[%clk 0:00:26]} 31. Rg1 {[%clk 0:01:24]}  Qe7 {[%clk 0:00:25]} 32. h5 {[%clk 0:01:22]}  Rd2 {[%clk 0:00:24]} 33. Rg2 {[%clk 0:01:22]}  Rd4 {[%clk 0:00:22]} 34. Ne2 {[%clk 0:01:17]}  Re4 {[%clk 0:00:22]} 35. Rgg1 {[%clk 0:01:18]}  Qh4 {[%clk 0:00:14]} 36. Kh2 {[%clk 0:01:05]}  Nxe2 {[%clk 0:00:12]} 37. Rxe2 {[%clk 0:01:06]}  Rxf4 {[%clk 0:00:12]} 38. Qg3 {[%clk 0:01:04]}  Qxg3+ {[%clk 0:00:13]} 39. Kxg3 {[%clk 0:01:04]}  Rd4 {[%clk 0:00:12]} 40. Ra1 {[%clk 0:01:03]}  Rd3+ {[%clk 0:00:12]} 41. Kg2 {[%clk 0:01:03]}  Rxb3 {[%clk 0:00:12]} 42. Rxa5 {[%clk 0:01:04]}  Rc3 {[%clk 0:00:13]} 43. Rd2 {[%clk 0:00:55]}  Rxc4 {[%clk 0:00:10]} 44. Ra8 {[%clk 0:00:54]}  Kf7 {[%clk 0:00:05]} 45. Rd7+ {[%clk 0:00:54]}  Kf8 {[%clk 0:00:05]} 46. Rdd8 {[%clk 0:00:54]}  Rc2+ {[%clk 0:00:03]} 47. Kf3 {[%clk 0:00:54]}  Rc3+ {[%clk 0:00:04]} 48. Ke2 {[%clk 0:00:54]}  Rxh3 {[%clk 0:00:04]} 49. Rxe8+ {[%clk 0:00:55]}  Kf7 {[%clk 0:00:04]} 50. Rf8+ {[%clk 0:00:55]}  Ke7 {[%clk 0:00:05]} 51. Rfb8 {[%clk 0:00:51]}  Kd7 {[%clk 0:00:04]} 52. Rb6 {[%clk 0:00:45]}  Rxh5 {[%clk 0:00:03]} 53. Ra7+ {[%clk 0:00:45]}  Kc8 {[%clk 0:00:03]} 54. Rxe6 {[%clk 0:00:45]}  Rh2+ {[%clk 0:00:04]} 55. Kd3 {[%clk 0:00:45]}  Kd8 {[%clk 0:00:04]} 56. Rd6+ {[%clk 0:00:44]}  Ke8 {[%clk 0:00:04]} 57. Rb6 {[%clk 0:00:44]}  Rh3+ {[%clk 0:00:03]} 58. Kd2 {[%clk 0:00:45]}  Rh2+ {[%clk 0:00:03]} 59. Kc1 {[%clk 0:00:45]}  Rh1+ {[%clk 0:00:03]} 60. Kb2 {[%clk 0:00:46]}  Rh2+ {[%clk 0:00:04]} 61. Kb3 {[%clk 0:00:46]}  Rd2 {[%clk 0:00:03]} 62. Rb8+ {[%clk 0:00:45]}  Rd8 {[%clk 0:00:04]} 63. Rxd8+ {[%clk 0:00:46]}  Kxd8 {[%clk 0:00:04]} 64. Rxg7 {[%clk 0:00:46]}  f4 {[%clk 0:00:04]} 65. Kxb4 {[%clk 0:00:47]}  f3 {[%clk 0:00:05]} 66. Kc3 {[%clk 0:00:47]}  Ke8 {[%clk 0:00:04]} 67. Kd3 {[%clk 0:00:47]}  h5 {[%clk 0:00:05]} 68. Ke3 {[%clk 0:00:47]}  h4 {[%clk 0:00:06]} 69. Kxf3 {[%clk 0:00:47]}  Kf8 {[%clk 0:00:07]} 70. Rg6 {[%clk 0:00:47]}  Kf7 {[%clk 0:00:07]} 71. Rf6+ {[%clk 0:00:48]}  Ke7 {[%clk 0:00:07]} 72. Kg4 {[%clk 0:00:49]}  Ke8 {[%clk 0:00:08]} 73. Kh3 {[%clk 0:00:50]}  Ke7 {[%clk 0:00:09]} 74. Kxh4 {[%clk 0:00:51]}  Ke8 {[%clk 0:00:10]} 75. Kg5 {[%clk 0:00:52]}  Ke7 {[%clk 0:00:10]} 76. Kf5 {[%clk 0:00:53]}  Ke8 {[%clk 0:00:11]} 77. Ke6 {[%clk 0:00:52]}  Kd8 {[%clk 0:00:11]} 78. Kd6 {[%clk 0:00:53]}  Ke8 {[%clk 0:00:12]} 79. e6 {[%clk 0:00:53]} 1-0


[Site "https://www.chess.com"]

[Event "Titled Tuesday Blitz September 27 Early 2022"]
[White "Ozer, Omer Faruk"]
[Black "Kamsky, Gata"]
[WhiteFideId "6354564"]
[BlackFideId "2000024"]
[WhiteElo "2053"]
[BlackElo "2666"]
[Result "1/2-1/2"]
[Round "02"]
[TimeControl "180+1"]
[Date "2022.09.27"]
[WhiteClock "0:00:15"]
[BlackClock "0:00:05"]

1. e4 {[%clk 0:03:00]}  c5 {[%clk 0:02:55]} 2. Nf3 {[%clk 0:03:00]}  e6 {[%clk 0:02:55]} 3. d3 {[%clk 0:02:59]}  Nc6 {[%clk 0:02:54]} 4. g3 {[%clk 0:02:58]}  e5 {[%clk 0:02:39]} 5. Bg2 {[%clk 0:02:56]}  Nf6 {[%clk 0:02:39]} 6. O-O {[%clk 0:02:55]}  Be7 {[%clk 0:02:39]} 7. Nh4 {[%clk 0:02:49]}  g6 {[%clk 0:02:23]} 8. f4 {[%clk 0:02:48]}  exf4 {[%clk 0:02:10]} 9. Bxf4 {[%clk 0:02:40]}  d5 {[%clk 0:02:09]} 10. Nc3 {[%clk 0:02:35]}  dxe4 {[%clk 0:01:50]} 11. dxe4 {[%clk 0:02:32]}  O-O {[%clk 0:01:29]} 12. Nf3 {[%clk 0:02:25]}  Bg4 {[%clk 0:01:27]} 13. h3 {[%clk 0:02:24]}  Qxd1 {[%clk 0:01:24]} 14. Raxd1 {[%clk 0:02:23]}  Bxf3 {[%clk 0:01:24]} 15. Bxf3 {[%clk 0:02:21]}  Nd4 {[%clk 0:01:24]} 16. e5 {[%clk 0:02:21]}  Nd7 {[%clk 0:01:22]} 17. Nd5 {[%clk 0:02:19]}  Bd8 {[%clk 0:01:17]} 18. Bg4 {[%clk 0:02:15]}  Nb6 {[%clk 0:01:16]} 19. c4 {[%clk 0:01:58]}  Nxc4 {[%clk 0:01:10]} 20. b4 {[%clk 0:01:55]}  Ne6 {[%clk 0:00:59]} 21. bxc5 {[%clk 0:01:48]}  Nxc5 {[%clk 0:00:54]} 22. Rc1 {[%clk 0:01:48]}  b5 {[%clk 0:00:54]} 23. Be2 {[%clk 0:01:45]}  Ne6 {[%clk 0:00:49]} 24. a4 {[%clk 0:01:38]}  a6 {[%clk 0:00:47]} 25. Bxc4 {[%clk 0:01:37]}  bxc4 {[%clk 0:00:47]} 26. Rxc4 {[%clk 0:01:38]}  Kg7 {[%clk 0:00:45]} 27. Rb1 {[%clk 0:01:36]}  Ra7 {[%clk 0:00:43]} 28. Rc6 {[%clk 0:01:29]}  h5 {[%clk 0:00:35]} 29. Be3 {[%clk 0:01:26]}  Ra8 {[%clk 0:00:31]} 30. Rb7 {[%clk 0:01:23]}  Re8 {[%clk 0:00:29]} 31. Rd6 {[%clk 0:01:21]}  Ba5 {[%clk 0:00:25]} 32. Rdd7 {[%clk 0:01:20]}  Nd8 {[%clk 0:00:25]} 33. Bg5 {[%clk 0:01:17]}  Nxb7 {[%clk 0:00:25]} 34. Rxb7 {[%clk 0:01:15]}  Bd8 {[%clk 0:00:25]} 35. Bf4 {[%clk 0:01:10]}  Re6 {[%clk 0:00:24]} 36. Kg2 {[%clk 0:01:03]}  Rc8 {[%clk 0:00:25]} 37. h4 {[%clk 0:01:03]}  Kf8 {[%clk 0:00:24]} 38. Ne3 {[%clk 0:00:57]}  Re7 {[%clk 0:00:22]} 39. Rb3 {[%clk 0:00:54]}  Rd7 {[%clk 0:00:23]} 40. Kf3 {[%clk 0:00:53]}  Kg7 {[%clk 0:00:22]} 41. Ke4 {[%clk 0:00:53]}  Rc5 {[%clk 0:00:21]} 42. Rb8 {[%clk 0:00:52]}  Bc7 {[%clk 0:00:19]} 43. Rb7 {[%clk 0:00:51]}  Re7 {[%clk 0:00:19]} 44. Nd5 {[%clk 0:00:49]}  Rd7 {[%clk 0:00:18]} 45. Nf6 {[%clk 0:00:49]}  Rd8 {[%clk 0:00:17]} 46. Ra7 {[%clk 0:00:40]}  Rc4+ {[%clk 0:00:17]} 47. Kf3 {[%clk 0:00:39]}  a5 {[%clk 0:00:16]} 48. Ne4 {[%clk 0:00:36]}  Rc8 {[%clk 0:00:15]} 49. Nd6 {[%clk 0:00:32]}  Bxd6 {[%clk 0:00:14]} 50. exd6 {[%clk 0:00:33]}  Rd8 {[%clk 0:00:13]} 51. Rxa5 {[%clk 0:00:32]}  Rd7 {[%clk 0:00:12]} 52. Ke3 {[%clk 0:00:31]}  f6 {[%clk 0:00:12]} 53. Kd3 {[%clk 0:00:31]}  Rb4 {[%clk 0:00:12]} 54. Kc3 {[%clk 0:00:31]}  Re4 {[%clk 0:00:13]} 55. Kb3 {[%clk 0:00:27]}  Kf7 {[%clk 0:00:12]} 56. Rc5 {[%clk 0:00:27]}  Ke6 {[%clk 0:00:12]} 57. a5 {[%clk 0:00:27]}  Re1 {[%clk 0:00:11]} 58. Kb4 {[%clk 0:00:24]}  Rb1+ {[%clk 0:00:11]} 59. Ka4 {[%clk 0:00:24]}  Rdb7 {[%clk 0:00:11]} 60. Rc3 {[%clk 0:00:21]}  R1b4+ {[%clk 0:00:10]} 61. Ka3 {[%clk 0:00:21]}  R4b5 {[%clk 0:00:11]} 62. Re3+ {[%clk 0:00:20]}  Kd5 {[%clk 0:00:11]} 63. Ka4 {[%clk 0:00:20]}  Rb4+ {[%clk 0:00:11]} 64. Ka3 {[%clk 0:00:20]}  Rb1 {[%clk 0:00:11]} 65. Ka2 {[%clk 0:00:18]}  R1b5 {[%clk 0:00:10]} 66. a6 {[%clk 0:00:14]}  Ra5+ {[%clk 0:00:09]} 67. Ra3 {[%clk 0:00:14]}  Rxa3+ {[%clk 0:00:09]} 68. Kxa3 {[%clk 0:00:15]}  Ra7 {[%clk 0:00:10]} 69. Kb4 {[%clk 0:00:15]}  Kc6 {[%clk 0:00:07]} 70. Ka5 {[%clk 0:00:15]}  Ra8 {[%clk 0:00:07]} 71. d7 {[%clk 0:00:12]}  Kxd7 {[%clk 0:00:07]} 72. Kb6 {[%clk 0:00:13]}  Rg8 {[%clk 0:00:06]} 73. a7 {[%clk 0:00:13]}  Ra8 {[%clk 0:00:06]} 74. Bb8 {[%clk 0:00:13]}  Kc8 {[%clk 0:00:05]} 75. Kc6 {[%clk 0:00:13]}  g5 {[%clk 0:00:04]} 76. hxg5 {[%clk 0:00:13]}  fxg5 {[%clk 0:00:05]} 77. Kd5 {[%clk 0:00:14]}  h4 {[%clk 0:00:05]} 78. gxh4 {[%clk 0:00:14]}  gxh4 {[%clk 0:00:05]} 79. Ke4 {[%clk 0:00:15]}  Rxb8 {[%clk 0:00:05]} 80. axb8=Q+ {[%clk 0:00:14]}  Kxb8 {[%clk 0:00:06]} 81. Kf3 {[%clk 0:00:15]}  Kc7 {[%clk 0:00:05]} 82. Kg4 {[%clk 0:00:15]}  Kd6 {[%clk 0:00:05]} 83. Kxh4 {[%clk 0:00:15]} 1/2-1/2


[Site "https://www.chess.com"]